bitfinex-derivatives/quotes_SOLF0:USTF0_20251115
["timestamp","ask_amount","ask_price","bid_price","bid_amount"]
[1763165349567,3.21,140.43,140.42,0.05158494]
[1763165350477,0.05376209,140.44,140.42,3.41158494]
[1763165351274,0.05376209,140.44,140.42,0.05158494]
[1763165351483,3.17376209,140.44,140.42,0.05158494]
[1763165353179,0.05376209,140.44,140.42,0.05158494]
[1763165356066,3.17376209,140.44,140.42,0.05158494]
[1763165356881,0.05376209,140.44,140.42,0.05158494]
[1763165357583,0.05376209,140.44,140.42,6.46618494]
[1763165357973,0.05376209,140.44,140.42,0.05158494]
[1763165358882,3.17376209,140.44,140.36,6.4171]
[1763165359083,3.12,140.52,140.34,3.36]
[1763165359469,3.12,140.52,140.38,6.4162]
[1763165359679,3.12,140.51,140.38,6.4162]
[1763165360073,3.12,140.45,140.43,0.04878034]
[1763165360269,3.17161906,140.45,140.33,3.36]
[1763165360474,3.12,140.45,140.3,3.36]
[1763165360672,3.12,140.45,140.34,6.4183]
[1763165360874,3.12,140.45,140.3,3.36]
[1763165361377,3.12,140.38,140.36,0.04958774]
[1763165361583,3.12,140.38,140.26,3.36]
[1763165362277,3.12,140.38,140.3,6.4198]
[1763165362481,0.04675133,140.35,140.33,0.05323752]
[1763165363480,3.16675133,140.35,140.33,0.05323752]
[1763165363686,0.04675133,140.35,140.33,0.05323752]
[1763165364077,3.16675133,140.35,140.33,0.05323752]
[1763165369787,3.12,140.33,140.24,3.36]
[1763165370689,3.12,140.29,140.27,0.0545077]
[1763165370893,3.1699218,140.29,140.27,0.04660888]
[1763165371498,3.1699218,140.29,140.19,3.36]
[1763165371697,3.12,140.39,140.21,3.36]
[1763165372384,3.12,140.3,140.29,0.04841634]
[1763165372588,3.12,140.3,140.21,3.36]
[1763165372788,3.12,140.3,140.17,3.36]
[1763165373298,3.12,140.3,140.18,6.4256]
[1763165373595,3.06,140.24,140.23,0.0516929]
[1763165373786,3.06,140.24,140.22,0.0520215]
[1763165373982,0.04855232,140.24,140.22,3.14925196]
[1763165374690,3.06,140.3,140.22,3.14925196]
[1763165374691,3.06,140.3,140.23,3.1]
[1763165375687,0.04932681,140.28,140.25,0.04960856]
[1763165377096,3.10932681,140.28,140.25,0.04960856]
[1763165380204,3.10932681,140.28,140.16,3.1]
[1763165380392,3.06,140.28,140.16,3.1]
[1763165381297,0.0451066,140.23,140.21,0.04829843]
[1763165381497,0.04764797,140.23,140.21,0.04829843]
[1763165381898,0.04764797,140.23,140.21,3.14829843]
[1763165383002,0.04764797,140.23,140.21,0.04829843]
[1763165383402,0.04764797,140.23,140.21,3.14829843]
[1763165383999,0.04764797,140.23,140.21,9.57249843]
[1763165384206,0.04764797,140.23,140.22,3.1]
[1763165388008,3.06,140.32,140.23,3.1]
[1763165389104,0.05152747,140.29,140.26,0.04843392]
[1763165391209,0.05152747,140.29,140.26,6.47043392]
[1763165391708,0.05152747,140.29,140.27,3.1]
[1763165392714,0.05152747,140.29,140.27,9.5215]
[1763165393713,0.05152747,140.29,140.28,3.1]
[1763165393908,3.06,140.35,140.3,6.4202]
[1763165394116,3.06,140.35,140.14,51.62485191]
[1763165394117,3.06,140.38,140.31,3.1]
[1763165395003,3.1146179,140.36,140.33,0.05474634]
[1763165395202,3.11175035,140.36,140.33,6.46819365]
[1763165396116,0.05175035,140.36,140.33,6.46819365]
[1763165396612,3.11175035,140.36,140.19,3.1]
[1763165396821,3.06,140.34,140.19,3.1]
[1763165397318,3.06,140.34,140.21,6.4243]
[1763165397612,3.06,140.34,140.26,0.04563801]
[1763165397819,3.06,140.28,140.26,0.04563801]
[1763165398022,3.11248883,140.28,140.26,0.0495196]
[1763165398316,0.05248883,140.28,140.26,0.0495196]
[1763165398703,0.05248883,140.28,140.26,3.1495196]
[1763165400706,3.06,140.35,140.28,6.421]
[1763165400911,3.06,140.35,140.26,3.1]
[1763165401409,3.06,140.35,140.29,6.4206]
[1763165401607,3.06,140.41,140.32,3.1]
[1763165401811,3.06,140.41,140.27,3.1]
[1763165402123,3.06,140.4,140.27,3.1]
[1763165402418,3.06,140.4,140.32,6.4192]
[1763165402613,3.06,140.4,140.35,0.05440896]
[1763165402814,0.05045878,140.37,140.35,0.05440896]
[1763165404012,3.32045878,140.37,140.35,0.05440896]
[1763165404208,3.27,140.36,140.28,3.25]
[1763165404815,3.27,140.41,140.29,3.25]
[1763165405211,3.27,140.41,140.3,6.4201]
[1763165405413,3.27,140.41,140.3,3.25]
[1763165405714,3.27,140.41,140.33,6.4187]
[1763165405920,0.04688973,140.38,140.36,0.04840468]
[1763165406419,0.04688973,140.38,140.36,3.29840468]
[1763165407022,0.04688973,140.38,140.37,3.25]
[1763165407419,9.84120273,140.48,140.37,3.25]
[1763165407615,3.27,140.48,140.38,3.25]
[1763165408410,88.75,140.51,140.42,0.05358953]
[1763165408712,88.75,140.51,140.43,3.25]
[1763165409110,3.27,140.55,140.44,3.25]
[1763165409614,0.04726462,140.51,140.49,3.25]
[1763165409809,3.07,140.58,140.49,3.2987439]
[1763165410122,3.11837868,140.55,140.52,0.05255]
[1763165410915,3.11837868,140.55,140.52,3.12255]
[1763165410916,0.04837868,140.55,140.52,3.12255]
[1763165411122,2.00754173,140.59,140.53,3.07]
[1763165412525,0.05282144,140.57,140.53,3.07]
[1763165413921,3.12282144,140.57,140.52,0.05255]
[1763165414725,3.12282144,140.57,140.45,3.07]
[1763165414917,3.07,140.57,140.45,3.07]
[1763165415222,3.07,140.57,140.43,3.07]
[1763165415723,3.07,140.5,140.49,0.05157625]
[1763165415920,3.07,140.5,140.48,0.050749]
[1763165416120,3.12336426,140.5,140.48,0.05292361]
[1763165416314,3.12336426,140.5,140.4,6.4156]
[1763165416522,3.07,140.5,140.39,3.07]
[1763165417321,3.07,140.5,140.3,12.8402]
[1763165417322,0.05222649,140.46,140.43,0.05072954]
[1763165417524,0.0482045,140.46,140.43,0.05450108]
[1763165417718,0.0482045,140.46,140.43,3.12450108]
[1763165418425,0.0482045,140.46,140.43,0.05450108]
[1763165423127,0.0482045,140.46,140.43,3.12450108]
[1763165423818,0.0482045,140.46,140.43,0.05450108]
[1763165424028,3.1182045,140.46,140.43,0.05450108]
[1763165424930,0.0482045,140.46,140.43,0.05450108]
[1763165425324,3.1182045,140.46,140.43,0.05450108]
[1763165425722,3.1182045,140.46,140.25,24.45]
[1763165425723,3.07,140.45,140.25,24.45]
[1763165426029,3.07,140.44,140.31,3.07]
[1763165426432,3.07,140.44,140.27,3.07]
[1763165426828,0.05312391,140.37,140.34,3.12036066]
[1763165427046,0.05490189,140.37,140.34,3.11916725]
[1763165427433,0.05490189,140.37,140.35,3.07]
[1763165427736,3.07,140.44,140.35,3.07]
[1763165427934,3.07,140.44,140.36,6.4173]
[1763165428322,3.07,140.53,140.42,6.4145]
[1763165428728,0.04796997,140.49,140.46,0.05202464]
[1763165428926,0.04796997,140.49,140.46,0.05233961]
[1763165428927,3.12245578,140.49,140.46,0.05233961]
[1763165429536,0.05245578,140.49,140.46,0.05233961]
[1763165430335,3.12245578,140.49,140.46,0.05233961]
[1763165431436,0.05245578,140.49,140.46,0.05233961]
[1763165431837,3.12245578,140.49,140.46,0.05233961]
[1763165432343,0.05245578,140.49,140.46,3.12233961]
[1763165432639,0.05245578,140.49,140.47,9.4823]
[1763165432831,0.05245578,140.49,140.48,3.07]
[1763165433239,3.07,140.57,140.48,3.07]
[1763165434128,3.07,140.57,140.51,0.0473248]
[1763165434330,3.14,140.53,140.51,0.0473248]
[1763165434735,0.05046439,140.54,140.51,0.0473248]
[1763165434943,3.19046439,140.54,140.51,0.0473248]
[1763165436538,0.05046439,140.54,140.51,0.0473248]
[1763165436740,3.19046439,140.54,140.51,0.0473248]
[1763165437548,0.05046439,140.54,140.51,3.3873248]
[1763165437948,2.00754173,140.59,140.51,3.3873248]
[1763165437949,2.00754173,140.59,140.53,3.34]
[1763165438947,0.04720749,140.57,140.55,0.04734027]
[1763165439742,0.04720749,140.57,140.56,3.34]
[1763165441045,0.04720749,140.57,140.55,0.04734027]
[1763165441251,0.04720749,140.57,140.55,3.38734027]
[1763165441648,3.18720749,140.57,140.55,0.04734027]
[1763165441844,3.18720749,140.57,140.48,3.34]
[1763165442049,3.14,140.57,140.48,3.34]
[1763165442751,0.05169449,140.54,140.51,0.05289628]
[1763165443049,3.19169449,140.54,140.51,0.05289628]
[1763165444054,0.05169449,140.54,140.51,0.05289628]
[1763165444254,3.19169449,140.54,140.51,0.05289628]
[1763165448456,0.05169449,140.54,140.51,3.39289628]
[1763165449359,0.05169449,140.54,140.53,3.34]
[1763165450653,0.05169449,140.54,140.51,0.05289628]
[1763165450858,3.19169449,140.54,140.51,0.05289628]
[1763165452159,0.05169449,140.54,140.51,3.39289628]
[1763165452557,3.19169449,140.54,140.51,0.05289628]
[1763165454254,0.05169449,140.54,140.51,3.39289628]
[1763165455062,0.05169449,140.54,140.52,3.34]
[1763165455766,0.05169449,140.54,140.51,0.05289628]
[1763165456066,0.05169449,140.54,140.51,3.39289628]
[1763165457654,0.05169449,140.54,140.51,0.05289628]
[1763165458051,0.05169449,140.54,140.51,3.39289628]
[1763165458649,0.05169449,140.54,140.51,0.05289628]
[1763165458650,3.19169449,140.54,140.51,0.05289628]
[1763165461055,3.19169449,140.54,140.43,3.34]
[1763165461355,3.14,140.54,140.43,3.34]
[1763165462152,3.18559321,140.5,140.47,0.05027646]
[1763165462355,0.05152573,140.5,140.47,0.05096421]
[1763165462565,3.19152573,140.5,140.47,0.05096421]
[1763165464760,3.19152573,140.5,140.39,3.16]
[1763165464959,3.14,140.5,140.39,3.16]
[1763165465761,0.04493881,140.46,140.39,3.16]
[1763165465964,0.04493881,140.46,140.43,0.04502182]
[1763165466171,3.14739218,140.46,140.43,0.04812365]
[1763165466662,0.04739218,140.46,140.43,0.04812365]
[1763165466969,0.04739218,140.46,140.43,3.20812365]
[1763165467167,0.04739218,140.46,140.43,6.46232365]
[1763165468358,0.04739218,140.46,140.43,0.04812365]
[1763165468767,0.04739218,140.46,140.43,3.20812365]
[1763165470364,0.04739218,140.46,140.43,0.04812365]
[1763165470873,3.42739218,140.46,140.43,0.04812365]
[1763165472874,3.42739218,140.46,140.34,3.1]
[1763165473081,3.38,140.46,140.34,3.1]
[1763165473577,3.38,140.46,140.38,3.1]
[1763165473870,0.04666984,140.43,140.41,3.14991556]
[1763165474174,0.04666984,140.43,140.41,3.15435168]
[1763165474771,3.42666984,140.43,140.41,0.05435168]
[1763165478073,3.42666984,140.43,140.35,3.1]
[1763165478373,3.42666984,140.43,140.36,6.4174]
[1763165478872,3.42666984,140.43,140.37,6.4169]
[1763165479171,3.42666984,140.43,140.39,0.04772003]
[1763165479564,0.04666984,140.43,140.39,3.14772003]
[1763165480560,3.42666984,140.43,140.39,0.04772003]
[1763165481172,3.42666984,140.43,140.39,3.14772003]
[1763165482173,0.04666984,140.43,140.39,3.14772003]
[1763165483276,0.04666984,140.43,140.39,9.56372003]
[1763165483967,0.04666984,140.43,140.4,9.5156]
[1763165484867,3.42666984,140.43,140.39,0.04772003]
[1763165485063,0.04666984,140.43,140.39,3.14772003]
[1763165485469,0.04666984,140.43,140.42,3.1]
[1763165485674,3.38,140.49,140.42,3.1]
[1763165486577,3.42928555,140.47,140.44,0.05012251]
[1763165486874,3.42898303,140.47,140.36,3.1]
[1763165487077,3.38,140.47,140.35,6.4177]
[1763165487575,3.38,140.47,140.33,3.1]
[1763165487779,3.38,140.4,140.39,0.05000544]
[1763165488169,0.04692576,140.41,140.39,0.05000544]
[1763165488374,3.42692576,140.41,140.39,0.05000544]
[1763165492179,0.04692576,140.41,140.39,0.05000544]
[1763165492481,3.42692576,140.41,140.39,0.05000544]
[1763165495186,3.19,140.49,140.39,3.14000544]
[1763165495374,3.19,140.53,140.4,3.09]
[1763165495877,3.19,140.53,140.45,9.5033]
[1763165496270,6.57120273,140.58,140.49,3.09]
[1763165496271,0.04501365,140.5,140.49,3.09]
[1763165496477,3.19,140.56,140.49,3.09]
[1763165496891,3.23836055,140.54,140.51,0.05023605]
[1763165497183,0.04836055,140.54,140.51,3.14023605]
[1763165498070,0.04836055,140.54,140.51,9.55073605]
[1763165498272,0.04836055,140.54,140.52,3.09]
[1763165498780,0.04836055,140.54,140.51,0.05023605]
[1763165499082,3.23836055,140.54,140.51,0.05023605]
[1763165500082,3.23836055,140.54,140.39,3.09]
[1763165500286,3.19,140.54,140.39,3.09]
[1763165500487,3.19,140.54,140.44,9.5036]
[1763165500874,3.19,140.54,140.44,3.09]
[1763165501069,0.05440117,140.5,140.48,0.05015778]
[1763165505184,3.24440117,140.5,140.48,0.05015778]
[1763165505485,0.05440117,140.5,140.48,0.05015778]
[1763165506989,0.05440117,140.5,140.48,3.14015778]
[1763165507289,0.05440117,140.5,140.48,0.05015778]
[1763165508187,0.05440117,140.5,140.48,3.14015778]
[1763165508387,2.00754173,140.59,140.49,3.09]
[1763165508590,5.19754173,140.59,140.49,3.09]
[1763165509092,5.19754173,140.59,140.52,6.4099]
[1763165509500,3.23867575,140.57,140.54,0.05142074]
[1763165511894,0.04867575,140.57,140.54,3.14142074]
[1763165512395,3.23867575,140.57,140.54,0.05142074]
[1763165512793,2.00754173,140.59,140.56,3.09]
[1763165513391,4.351e-05,140.59,140.58,3.09]
[1763165513798,4.351e-05,140.59,140.58,4.51]
[1763165514308,3.19,140.68,140.6,9.4962]
[1763165514795,3.19,140.68,140.57,3.09]
[1763165515392,3.23995473,140.64,140.61,0.04702531]
[1763165515601,3.23697227,140.64,140.61,0.05131337]
[1763165516087,3.19,140.63,140.49,3.09]
[1763165516788,3.19,140.63,140.51,3.09]
[1763165516995,0.04653401,140.58,140.56,0.04877309]
[1763165517194,3.19,140.57,140.56,0.04877309]
[1763165517394,3.19,140.57,140.51,3.09]
[1763165517395,3.19,140.57,140.5,6.411]
[1763165517593,3.19,140.57,140.48,3.09]
[1763165517794,3.19,140.61,140.5,3.09]
[1763165518390,0.04745796,140.57,140.54,3.1353433]
[1763165518591,0.04763238,140.57,140.54,3.14307559]
[1763165518900,0.04763238,140.57,140.55,3.09]
[1763165519690,0.04763238,140.57,140.55,9.4987]
[1763165519894,0.04763238,140.57,140.56,3.09]
[1763165520096,3.19,140.65,140.56,3.09]
[1763165520296,3.19,140.65,140.57,9.4978]
[1763165520493,3.19,140.69,140.57,3.09]
[1763165521001,3.19,140.69,140.6,6.4064]
[1763165521302,3.19,140.77,140.63,3.14168079]
[1763165521506,4.42715738,140.76,140.67,9.493]
[1763165521706,3.19,140.76,140.67,3.09]
[1763165521899,3.19,140.76,140.57,3.09]
[1763165522206,3.19,140.76,140.6,3.09]
[1763165522596,3.19,140.68,140.57,3.09]
[1763165523004,3.19,140.68,140.48,3.09]
[1763165523210,3.19,140.68,140.53,3.09]
[1763165523705,0.05120149,140.62,140.59,0.05073338]
[1763165523906,0.05120149,140.62,140.59,3.15073338]
[1763165524206,3.19120149,140.62,140.59,0.05073338]
[1763165525693,3.19120149,140.62,140.51,3.1]
[1763165525694,3.14,140.61,140.51,3.1]
[1763165526603,0.05357106,140.57,140.55,0.05286601]
[1763165527304,0.05357106,140.57,140.55,3.15286601]
[1763165529505,3.14,140.65,140.56,3.1]
[1763165529914,3.14,140.65,140.47,21.50005409]
[1763165530102,3.14,140.65,140.51,3.1]
[1763165530497,0.04848515,140.59,140.57,0.05400496]
[1763165530697,0.04956423,140.59,140.57,0.05279809]
[1763165530905,3.31,140.58,140.57,0.05279809]
[1763165531114,3.31,140.58,140.51,3.1]
[1763165531806,3.31,140.62,140.52,3.16]
[1763165532113,3.35559412,140.58,140.56,0.05209763]
[1763165532411,3.36309548,140.58,140.56,0.04898343]
[1763165532612,0.05309548,140.58,140.56,3.20898343]
[1763165534715,0.05309548,140.58,140.56,0.04898343]
[1763165534909,3.36309548,140.58,140.56,0.04898343]
[1763165535116,3.36309548,140.58,140.49,3.16]
[1763165535311,3.31,140.58,140.49,3.16]
[1763165536008,0.05090891,140.55,140.52,0.05243351]
[1763165537614,0.05090891,140.55,140.52,3.21243351]
[1763165538521,0.05090891,140.55,140.52,0.05243351]
[1763165538723,3.36090891,140.55,140.52,0.05243351]
[1763165539112,3.36090891,140.55,140.45,3.16]
[1763165539313,3.31,140.55,140.45,3.16]
[1763165540221,0.05335997,140.51,140.49,0.05021667]
[1763165540519,0.05335997,140.51,140.49,3.21021667]
[1763165540913,3.31,140.58,140.5,3.16]
[1763165541919,3.31,140.58,140.53,0.0463076]
[1763165542124,0.05309746,140.55,140.53,0.0463076]
[1763165547620,0.05309746,140.55,140.53,3.2063076]
[1763165547821,3.31,140.62,140.53,3.2063076]
[1763165548023,6.57120273,140.68,140.53,3.16]
[1763165548223,3.31,140.68,140.53,3.16]
[1763165548527,3.31,140.68,140.63,9.565]
[1763165548732,88.69,140.73,140.64,3.16]
[1763165549028,0.05431461,140.7,140.67,3.20734921]
[1763165549225,0.04532831,140.7,140.67,3.21364532]
[1763165549823,3.35532831,140.7,140.67,0.05364532]
[1763165551232,3.31,140.69,140.61,3.16]
[1763165552336,0.04812883,140.66,140.64,0.05210305]
[1763165554020,3.08,140.65,140.64,0.05210305]
[1763165554222,3.08,140.65,140.52,13.39562568]
[1763165554223,3.08,140.65,140.57,3.35]
[1763165554419,6.57120273,140.72,140.57,3.35]
[1763165554420,3.08,140.71,140.57,3.35]
[1763165554628,3.08,140.71,140.52,8.56135242]
[1763165554828,6.57120273,140.7,140.53,3.35]
[1763165555021,3.08,140.68,140.53,3.35]
[1763165555226,3.08,140.61,140.59,0.04503331]
[1763165555427,3.08,140.61,140.5,3.35]
[1763165555625,0.05136021,140.57,140.54,0.04613064]
[1763165555932,3.13136021,140.57,140.54,0.04613064]
[1763165556526,0.05136021,140.57,140.54,3.39613064]
[1763165556726,0.05136021,140.57,140.54,0.04613064]
[1763165559034,3.13136021,140.57,140.54,0.04613064]
[1763165559632,0.05136021,140.57,140.54,0.04613064]
[1763165559838,3.13136021,140.57,140.54,0.04613064]
[1763165561142,3.13136021,140.57,140.47,9.7623]
[1763165561445,3.08,140.57,140.47,3.35]
[1763165562032,3.1295491,140.53,140.51,0.05010243]
[1763165562241,3.1295491,140.53,140.51,0.05371049]
[1763165562242,3.12631877,140.53,140.51,0.05371049]
[1763165563440,3.08,140.52,140.4,11.91135242]
[1763165563636,3.08,140.51,140.41,6.415]
[1763165564029,3.08,140.51,140.41,3.35]
[1763165564634,0.05055796,140.47,140.45,0.0469646]
[1763165565037,3.13055796,140.47,140.45,0.0469646]
[1763165566346,0.05055796,140.47,140.45,0.0469646]
[1763165567244,3.13055796,140.47,140.45,0.0469646]
[1763165567944,0.05055796,140.47,140.45,3.3969646]
[1763165568445,3.13055796,140.47,140.45,0.0469646]
[1763165570333,3.13055796,140.47,140.39,3.35]
[1763165570750,3.13055796,140.47,140.4,9.7655]
[1763165570946,3.08,140.47,140.4,3.35]
[1763165571359,0.05273792,140.45,140.42,0.02197963]
[1763165571662,3.13273792,140.45,140.42,0.02197963]
[1763165572260,0.05273792,140.45,140.42,0.02197963]
[1763165572662,0.05273792,140.45,140.42,3.37197963]
[1763165573257,0.05273792,140.45,140.42,0.02197963]
[1763165573457,0.05273792,140.45,140.42,3.37197963]
[1763165575567,3.08,140.53,140.42,3.37197963]
[1763165575761,3.08,140.53,140.42,3.35]
[1763165575959,3.08,140.53,140.44,3.35]
[1763165576465,0.05450905,140.5,140.47,0.05038673]
[1763165576966,3.13450905,140.5,140.47,0.05038673]
[1763165580668,0.05450905,140.5,140.47,3.40038673]
[1763165581964,3.13450905,140.5,140.47,0.05038673]
[1763165582669,0.05450905,140.5,140.47,3.40038673]
[1763165583863,0.05450905,140.5,140.47,0.05038673]
[1763165584069,3.17450905,140.5,140.47,0.05038673]
[1763165584269,0.05450905,140.5,140.47,3.35038673]
[1763165584472,3.17450905,140.5,140.47,0.05038673]
[1763165584966,0.05450905,140.5,140.47,3.35038673]
[1763165585167,3.12,140.58,140.49,3.3]
[1763165585464,3.12,140.58,140.37,3.3]
[1763165585660,3.12,140.58,140.48,3.3]
[1763165586164,3.12,140.58,140.41,0.26423]
[1763165586165,3.12,140.58,140.52,3.3]
[1763165586360,3.12,140.58,140.41,30.20558242]
[1763165586361,0.05300936,140.56,140.55,3.3]
[1763165586555,0.04580519,140.57,140.55,3.3]
[1763165586755,0.04946707,140.57,140.55,3.35108361]
[1763165586963,88.56,140.66,140.55,3.35108361]
[1763165587160,3.12,140.65,140.55,3.3]
[1763165587568,3.12,140.65,140.46,21.38]
[1763165587569,3.12,140.65,140.58,3.3]
[1763165588266,0.0544512,140.63,140.6,0.05433708]
[1763165589464,3.1744512,140.63,140.6,0.05433708]
[1763165589961,3.21,140.62,140.54,3.3]
[1763165590670,3.21,140.65,140.54,3.3]
[1763165590971,0.04906973,140.59,140.57,3.27125876]
[1763165591174,0.04607192,140.59,140.57,3.26849082]
[1763165591870,3.25607192,140.59,140.57,0.04849082]
[1763165592074,0.04607192,140.59,140.57,0.04849082]
[1763165592465,3.25607192,140.59,140.57,0.04849082]
[1763165593066,0.04607192,140.59,140.57,3.26849082]
[1763165594875,0.04607192,140.59,140.57,0.04849082]
[1763165595374,0.04607192,140.59,140.57,3.26849082]
[1763165596574,0.04607192,140.59,140.57,0.04849082]
[1763165597968,0.04607192,140.59,140.57,3.26849082]
[1763165598777,0.04607192,140.59,140.57,0.04849082]
[1763165599182,0.04607192,140.59,140.57,3.26849082]
[1763165603784,0.04607192,140.59,140.57,0.04849082]
[1763165604288,0.04607192,140.59,140.57,3.26849082]
[1763165605883,3.25607192,140.59,140.57,0.04849082]
[1763165607474,0.04607192,140.59,140.57,0.04849082]
[1763165607778,0.04607192,140.59,140.57,3.26849082]
[1763165608776,0.04607192,140.59,140.57,0.04849082]
[1763165609478,3.25607192,140.59,140.57,0.04849082]
[1763165609687,0.04607192,140.59,140.57,0.04849082]
[1763165610284,3.25607192,140.59,140.57,0.04849082]
[1763165610583,0.04607192,140.59,140.57,3.26849082]
[1763165610779,0.04607192,140.59,140.57,0.04849082]
[1763165610980,3.25607192,140.59,140.57,0.04849082]
[1763165612381,3.25607192,140.59,140.41,13.65985568]
[1763165612382,3.21,140.57,140.48,3.22]
[1763165612984,3.21,140.61,140.48,3.22]
[1763165613379,0.0503799,140.56,140.53,3.26671792]
[1763165613580,0.04816264,140.56,140.53,3.26679713]
[1763165615686,0.04816264,140.56,140.55,3.34]
[1763165616989,3.24,140.62,140.56,3.34]
[1763165617992,0.04663394,140.6,140.58,0.05436065]
[1763165618490,3.28663394,140.6,140.58,0.05436065]
[1763165619094,3.28663394,140.6,140.52,9.7499]
[1763165619592,3.28663394,140.6,140.52,3.34]
[1763165620193,3.28663394,140.6,140.55,0.04800623]
[1763165621194,3.28663394,140.6,140.55,3.38800623]
[1763165622494,0.04663394,140.6,140.55,3.38800623]
[1763165623094,3.28663394,140.6,140.55,3.38800623]
[1763165624091,3.28663394,140.6,140.55,0.04800623]
[1763165629509,9.86866607,140.6,140.55,0.04800623]
[1763165629700,3.24,140.59,140.55,0.04800623]
[1763165629904,3.24,140.59,140.47,3.34]
[1763165629905,3.24,140.57,140.47,3.34]
[1763165630405,3.24,140.57,140.48,3.34]
[1763165630910,0.04603395,140.54,140.51,0.02166153]
[1763165631306,0.04603395,140.54,140.51,3.36166153]
[1763165632508,3.28603395,140.54,140.51,3.36166153]
[1763165632712,0.04603395,140.54,140.51,3.36166153]
[1763165633610,0.04603395,140.54,140.53,3.34]
[1763165636315,3.24,140.6,140.54,3.34]
[1763165637306,3.24,140.6,140.49,8.56135242]
[1763165637307,0.05184783,140.58,140.57,3.34]
[1763165637511,3.24,140.65,140.53,3.34]
[1763165637808,3.24,140.65,140.54,3.34]
[1763165638011,6.58203213,140.66,140.54,3.34]
[1763165638314,3.24,140.68,140.61,3.34]
[1763165638805,6.58203213,140.72,140.63,0.05403635]
[1763165638806,3.29375615,140.66,140.63,0.05403635]
[1763165639113,3.29173594,140.66,140.63,0.05040756]
[1763165639911,0.05173594,140.66,140.63,3.39040756]
[1763165640510,0.05173594,140.66,140.63,9.79540756]
[1763165640709,0.05173594,140.66,140.64,3.34]
[1763165642410,3.29173594,140.66,140.63,0.05040756]
[1763165642821,0.05173594,140.66,140.63,3.39040756]
[1763165643119,3.29173594,140.66,140.63,0.05040756]
[1763165643512,3.29173594,140.66,140.57,6.4077]
[1763165643713,3.24,140.66,140.57,9.5177]
[1763165644017,3.24,140.66,140.57,9.7769]
[1763165644518,0.05312395,140.63,140.6,0.04958589]
[1763165644714,0.05312395,140.63,140.6,3.15958589]
[1763165650619,3.42312395,140.63,140.6,0.04958589]
[1763165650826,3.42312395,140.63,140.57,0.2592]
[1763165651714,3.42312395,140.63,140.5,3.07]
[1763165651920,3.37,140.62,140.5,3.07]
[1763165652118,3.42314157,140.58,140.5,3.07]
[1763165653418,3.42314157,140.58,140.51,3.07]
[1763165653619,0.04687776,140.56,140.51,3.07]
[1763165653818,0.05259504,140.55,140.51,3.07]
[1763165654922,3.42259504,140.55,140.48,9.4817]
[1763165655117,3.42259504,140.55,140.49,3.07]
[1763165655523,0.05259504,140.55,140.5,3.07]
[1763165656125,0.05259504,140.55,140.52,3.07]
[1763165656330,0.04721005,140.55,140.52,3.07]
[1763165660623,0.04721005,140.55,140.53,3.07]
[1763165664032,0.04721005,140.55,140.54,3.07]
[1763165664428,0.04721005,140.55,140.48,8.56135242]
[1763165664626,0.04721005,140.55,140.5,3.07]
[1763165666332,0.04721005,140.55,140.52,3.07]
[1763165667527,0.04721005,140.55,140.52,9.4799]
[1763165667730,0.04721005,140.55,140.53,3.07]
[1763165667931,0.04721005,140.55,140.48,3.07]
[1763165668331,0.04721005,140.55,140.51,3.07]
[1763165668835,3.41721005,140.55,140.51,3.07]
[1763165669028,3.41721005,140.55,140.49,3.07]
[1763165670533,3.41721005,140.55,140.49,9.4815]
[1763165671839,0.04721005,140.55,140.5,3.07]
[1763165672131,3.41721005,140.55,140.5,3.07]
[1763165677446,3.41721005,140.55,140.51,3.09]
[1763165684948,3.41721005,140.55,140.48,9.5017]
[1763165685139,3.41721005,140.55,140.48,3.09]
[1763165685335,3.41721005,140.55,140.43,3.09]
[1763165685547,0.04994247,140.5,140.43,3.09]
[1763165685745,0.05158056,140.48,140.43,3.09]
[1763165686345,0.05158056,140.48,140.45,3.09]
[1763165687551,0.05158056,140.48,140.46,3.09]